Cogmind - Beta 14 @@@ ROGUE MODE // 2024.08.29 @ 19:15:14 Player: ILikeVoltron Result: Destroyed by Y-64 Sentinel with Wave Gun Performance ------------- Evolutions (5) 2500 Regions Visited (10) 2000 Robots Destroyed (88) 440 Value Destroyed (2042) 2042 Prototype IDs (30) 600 Alien Tech Used (0) 0 Bonus (352) 352 TOTAL SCORE: 7934 Bonus ------- Follower Combat Kills 52 Aligned with FarCom 300 Cogmind --------- Core Integrity 0/1000 Matter 33/300 Energy 100/100 System Corruption 0% Temperature Cool (27) Movement Core (50) Location -5/Factory Parts ------- > --- POWER (2) -------- (None) > --- PROPULSION (5) --- (None) > --- UTILITY (7) ------ Terrain Scan Processor > --- WEAPON (3) ------- (None) > --- INVENTORY (5) ---- Advanced Treads Improved Carbon-fiber Leg Armored Huge Wheel Improved Heat Sink Peak State ------------ > --- POWER ------------ Light Deuterium Engine Improved Deuterium Engine > --- PROPULSION ------- Carbon-fiber Leg Titanium Leg Titanium Leg Titanium Leg > --- UTILITY ---------- Humpback Advanced Weight Redist. System Improved Light Armor Plating Skeleton Box Improved Field Recycling Unit > --- WEAPON ----------- Mini Assault Cannon Mini Assault Cannon Mini Assault Cannon > --- INVENTORY -------- Micro Nuclear Core Titanium Leg Titanium Leg Titanium Leg Improved Carbon-fiber Leg Armored Huge Wheel Gravmag System Gravmag System Improved Heat Sink Improved Heat Sink Improved Heat Sink Large Storage Unit Huge Storage Unit Medium Matter Pod Large Matter Pod High-capacity Matter Pod Improved Sensor Array Improved Terrain Scanner Terrain Scan Processor Matter Filter Hardened Medium Armor Plating Improved Light Armor Plating Improved Shield Generator Hacking Suite Tractor Beam Proton Missile Launcher Remote Datajack Heavy Flail Scythe Blade Saw [Rating: 61] Favorites ----------- Power Micro Nuclear Core Engine Light Deuterium Engine Power Core Micro Nuclear Core Propulsion Aluminum Leg Treads Advanced Treads Leg Aluminum Leg Wheel Armored Huge Wheel Hover Unit Improved Hover Unit Flight Unit Flight Unit Utility Improved Targeting Computer Device Improved Terrain Scanner Storage Large Storage Unit Processor Improved Targeting Computer Protection Hardened Light Armor Plating Weapon Light Assault Rifle Energy Gun Particle Gun Energy Cannon Heavy Ion Cannon Ballistic Gun Light Assault Rifle Ballistic Cannon Mini Assault Cannon Launcher Proton Missile Launcher Special Weapon Mining Laser Impact Weapon Heavy Flail Slashing Weapon Scythe Build | -11 -10 -9 -9 -9 -8 -8 -7 -7 -6 -5 ------- Run | Yrd Mat Mat Min Exi Min Mat Fac Sto Fac Fac Slots Evolved 10 | . . 2 . . . 2 2 . 2 2 Power 1 | . . . . . . . 1 . . . Propulsion 3 | . . 1 . . . . . . 1 1 Utility 5 | . . 1 . . . 1 1 . 1 1 Weapon 1 | . . . . . . 1 . . . . Parts Attached 122 | 2 11 9 4 1 2 15 18 30 28 2 Power 11 | . . 2 . . . 1 3 1 4 . Engine 6 | . . 1 . . . 1 1 1 2 . Core 5 | . . 1 . . . . 2 . 2 . Reactor . | . . . . . . . . . . . Propulsion 31 | . 3 4 . . . 3 6 2 12 1 Treads 6 | . . . . . . 1 . . 4 1 Leg 17 | . 1 3 . . . 2 4 . 7 . Wheel 3 | . . . . . . . 1 2 . . Hover 4 | . 2 . . . . . 1 . 1 . Flight 1 | . . 1 . . . . . . . . Utility 36 | 1 1 2 1 1 1 4 7 9 9 . Device 25 | 1 1 1 1 . 1 2 5 7 6 . Storage 4 | . . . . 1 . . 2 . 1 . Processor 2 | . . 1 . . . . . . 1 . Hackware . | . . . . . . . . . . . Protection 5 | . . . . . . 2 . 2 1 . Artifact . | . . . . . . . . . . . Weapon 44 | 1 7 1 3 . 1 7 2 18 3 1 Energy Gun 13 | . 2 1 2 . . . 1 5 2 . Energy Cannon 2 | . . . . . . . . 2 . . Ballistic Gun 13 | 1 2 . . . . 6 1 3 . . Ballistic Cannon 7 | . . . 1 . 1 . . 3 1 1 Launcher 3 | . . . . . . . . 3 . . Special Weapon 3 | . 3 . . . . . . . . . Impact Weapon 1 | . . . . . . . . 1 . . Slashing Weapon 2 | . . . . . . 1 . 1 . . Piercing Weapon . | . . . . . . . . . . . Special Melee Weapon . | . . . . . . . . . . . Unidentified Prototypes 7 | . . . . . . 1 . 6 . . Corrupted Parts 1 | . . . . . . . 1 . . . System Corruption 2 | . . . . . . . 2 . . . Parts Lost 43 | . 4 3 . . . 6 . 4 20 6 Power 7 | . . 1 . . . . . 1 5 . Propulsion 15 | . 2 1 . . . 2 . 1 7 2 Utility 9 | . 1 . . . . 1 . . 6 1 Weapon 12 | . 1 1 . . . 3 . 2 2 3 Highest Loss Streak 10 | . 3 2 . . . 6 . 2 10 6 To Critical Strikes 1 | . . . . . . . . . . 1 Average Slot Usage (%) 88 | . 88 84 100 100 100 97 92 80 72 21 Engine 4 | . 14 8 . . . 3 6 2 4 . Core 6 | . . 1 11 11 11 4 4 11 2 . Treads 1 | . . . . . . 1 1 . 6 3 Leg 17 | . 12 14 33 33 33 24 16 2 12 . Wheel 1 | . . . . . . . 1 9 . . Device 13 | . 13 10 11 11 11 9 18 14 15 . Storage 9 | . 14 11 11 11 11 9 9 9 6 3 Processor 6 | . . 11 11 11 11 9 7 1 4 5 Protection 1 | . . . . . . 8 . 3 1 . Energy Gun 5 | . 9 20 13 11 7 . 5 2 1 . Ballistic Gun 7 | . 14 1 . . . 13 16 5 . . Ballistic Cannon 7 | . . . 8 11 14 12 . 3 16 8 Peak Build Rating 61 | 8 10 14 17 18 18 24 45 55 61 27 Average Rating 28 | 7 8 11 15 17 17 21 34 49 42 15 On Entrance 20 | 6 8 9 14 17 18 18 18 45 52 20 Naked Turns . | . . . . . . . . . . . Heaviest Build 264 | 14 15 15 18 33 35 47 261 264 250 32 Greatest Support 75 | 20 20 30 30 30 36 36 61 53 75 44 Greatest Overweight (x) 9 | . 4 1 . 1 1 3 9 9 9 . Average Overweight (x) 1 | . . . . . . 1 2 6 . . Largest Inventory Capacity 35 | 8 8 8 8 15 15 15 35 35 35 15 Average Capacity 18 | 8 8 8 8 9 15 15 22 35 19 12 Most Carried 35 | 8 8 8 8 13 15 15 35 35 35 11 Average Carried 16 | 7 7 7 7 8 14 14 20 34 14 8 Final Capacity 35 | 8 8 8 8 15 15 15 35 35 15 5 Final Carried 35 | 8 8 8 8 13 15 15 35 35 12 5 Class Distribution -------------------- 26% | Scavenger-Skirmisher 20% | Scavenger-Mutant 16% | Hauler-Skirmisher 15% | Mutant 13% | Skirmisher 4% | Hauler-Mutant Dominant Class ---------------- Mutant | -10/Materials Scavenger-Mutant | -9/Materials Scavenger-Mutant | -9/Mines Scavenger-Mutant | -9/Exiles Scavenger-Skirmisher | -8/Mines Scavenger-Skirmisher | -8/Materials Scavenger-Skirmisher | -7/Factory Hauler-Skirmisher | -7/Storage Skirmisher | -6/Factory Mutant | -5/Factory Resources | -11 -10 -9 -9 -9 -8 -8 -7 -7 -6 -5 ----------- Run | Yrd Mat Mat Min Exi Min Mat Fac Sto Fac Fac Matter Collected 2742 | 333 190 94 130 . 191 528 345 531 400 . Remotely 279 | . . 85 30 . . 28 . . 136 . Salvage Created 3021 | 229 225 438 . . 142 517 341 827 302 . Parts 204 | 21 21 17 . . 14 34 27 46 24 . Haulers Intercepted 2 | . . . . . . 2 . . . . Recyclers Shooed 5 | . . 2 . . . 2 1 . . . Parts Field Recycled 11 | . . . . . . . . 1 10 . Retrieved Matter 152 | . . . . . . . . 13 139 . Parts Self-Destructed . | . . . . . . . . . . . Prevented . | . . . . . . . . . . . Kills | -11 -10 -9 -9 -9 -8 -8 -7 -7 -6 -5 ------- Run | Yrd Mat Mat Min Exi Min Mat Fac Sto Fac Fac Combat Hostiles Destroyed 42 | . 4 7 . . 2 8 3 10 8 . Melee 1 | . . . . . . . . . 1 . Guns 22 | . 4 7 . . 1 4 3 3 . . Cannons 16 | . . . . . 1 4 . 4 7 . AOE 2 | . . . . . . . . 2 . . Classes Destroyed 13 | 3 3 1 . . . 2 1 2 1 . Worker 6 | 2 . . . . 2 1 1 . . . Builder 14 | . 1 2 . . 2 1 . 5 3 . Tunneler 7 | 5 1 . . . 1 . . . . . Hauler 2 | . . . . . . 2 . . . . Recycler 11 | 1 . 2 . . 1 2 2 2 1 . Mechanic 2 | . . . . . . . . 2 . . Watcher 4 | . 1 . . . . 1 1 1 . . Swarmer 13 | . . 3 . . 2 4 . . 4 . Grunt 15 | . 4 4 . . . 3 1 3 . . Duelist 1 | . . . . . . . . 1 . . Sentry 7 | . . . . . . 1 . 5 1 . Hunter 1 | . . . . . . . . . 1 . Programmer 5 | . . . . . . . 2 1 2 . Best Kill Streak 6 | 5 2 5 . . 3 6 2 4 6 . Combat Bots Only 4 | . 1 3 . . 2 2 1 3 4 . Max Kills in Single Turn 2 | 1 1 1 . . 1 2 1 1 2 . Gunslinging . | . . . . . . . . . . . Exploded 1 | . . . . . . . . 1 . . Melee 1 | . . . . . . . . . 1 . Uniques/NPCs Destroyed . | . . . . . . . . . . . Combat | -11 -10 -9 -9 -9 -8 -8 -7 -7 -6 -5 -------- Run | Yrd Mat Mat Min Exi Min Mat Fac Sto Fac Fac Hostile Shots Fired 889 | . 28 39 . . 7 123 26 268 313 85 Missed 266 | . 7 7 . . 2 43 7 92 92 16 Damage Taken 8288 | . 573 347 . . 45 896 295 1478 3048 1606 Core 2215 | . 132 73 . . 10 96 47 129 718 1010 Absorbed by Shields . | . . . . . . . . . . . Core Remaining (%) 66 | 100 47 . . . 79 82 . 74 15 . Volleys Fired 258 | 13 37 28 . . 13 39 32 30 61 5 Largest 3 | 2 2 2 . . 2 3 3 3 3 3 Hottest 148 | 80 100 105 . . 104 106 98 148 144 144 Shots Fired 561 | 25 51 54 . . 26 108 96 90 98 13 Gun 349 | 25 41 54 . . 9 62 96 35 27 . Cannon 199 | . . . . . 17 46 . 52 71 13 Launcher 3 | . . . . . . . . 3 . . Special 10 | . 10 . . . . . . . . . Kinetic 366 | 7 27 3 . . 17 108 64 56 71 13 Thermal 109 | 12 18 51 . . 9 . . 19 . . Explosive . | . . . . . . . . . . . Electromagnetic 86 | 6 6 . . . . . 32 15 27 . Robot Hit Streak 19 | 4 10 18 . . 19 10 9 11 6 . Robot Miss Streak 12 | 1 3 3 . . 2 5 3 10 12 . Penetration Max . | . . . . . . . . . . . Secondary Targets 1 | . . . . . . 1 . . . . Max Gunslinging Chain 1 | . . . . . . 1 . . . . Shots Hit Robots 322 | 17 30 40 . . 14 48 60 67 46 . Core Hits 159 | 9 14 17 . . 10 36 23 32 18 . Critical Kills 1 | . 1 . . . . . . . . . Critical Parts Destroyed 3 | . . . . . . . 1 2 . . Critical Strikes 14 | 1 1 . . . 1 2 1 6 2 . Destroy 3 | . 1 . . . . . 1 1 . . Blast 7 | . . . . . 1 1 . 3 2 . Corrupt 1 | 1 . . . . . . . . . . Smash 1 | . . . . . . . . 1 . . Sever 2 | . . . . . . 1 . 1 . . Melee Attacks 38 | . . . . . . 1 . 37 . . Impact 6 | . . . . . . . . 6 . . Slashing 32 | . . . . . . 1 . 31 . . Piercing . | . . . . . . . . . . . Sneak Attacks 9 | . . . . . . 1 . 8 . . Combat Hostiles . | . . . . . . . . . . . Follow-up Attacks . | . . . . . . . . . . . Damage Inflicted 5748 | 213 377 539 . . 277 740 522 2151 918 11 Guns 2532 | 213 377 539 . . 71 312 522 383 115 . Cannons 2226 | . . . . . 206 389 . 850 781 . Explosions 267 | . . . . . . . . 267 . . Melee 685 | . . . . . . 34 . 651 . . Ramming 38 | . . . . . . 5 . . 22 11 Kinetic 3187 | 39 250 23 . . 206 701 397 790 781 . Thermal 1101 | 96 65 516 . . 71 . . 353 . . Explosive 129 | . . . . . . . . 129 . . Electromagnetic 608 | 78 62 . . . . . 125 228 115 . Impact 27 | . . . . . . . . 27 . . Slashing 658 | . . . . . . 34 . 624 . . Piercing . | . . . . . . . . . . . Highest Corruption 10 | . 10 . . . . . 6 6 5 . Average Corruption 4 | . 10 . . . . . 3 3 4 . Corruption Purged 5 | . . . . . . . . 5 . . Corruption Blocked . | . . . . . . . . . . . Effects 43 | . 8 . . . . . 9 18 8 . Message Errors 7 | . 1 . . . . . 1 4 1 . Matter Fused 10 | . 2 . . . . . 2 5 1 . Heat Flow Errors 4 | . 1 . . . . . 2 1 . . Energy Discharges 3 | . 1 . . . . . 1 1 . . Parts Rejected 1 | . . . . . . . . . 1 . Parts Fused 1 | . . . . . . . . 1 . . Data Loss (minor) 5 | . 2 . . . . . 1 1 1 . Data Loss (major) 5 | . . . . . . . . 2 3 . Misfires 2 | . . . . . . . 1 1 . . Alerts 1 | . . . . . . . . 1 . . Weapon Failures 4 | . 1 . . . . . 1 1 1 . Overload Shots . | . . . . . . . . . . . Overflow Damage 167 | . . . . . . 2 . 163 2 . Projectiles 14 | . . . . . . 2 . 10 2 . Explosions . | . . . . . . . . . . . Melee 153 | . . . . . . . . 153 . . Knockbacks 13 | . . . . . 5 2 . . 6 . Impact . | . . . . . . . . . . . Kinetic 13 | . . . . . 5 2 . . 6 . Secondary . | . . . . . . . . . . . Self-Inflicted Damage 85 | . . . . . . . . 85 . . Shots 3 | . . . . . . . . 3 . . Rammed 9 | . . . . . . . . . 2 7 Targets Rammed 13 | . . . . . . 1 . . 5 7 Kicked 3 | . . . . . . 1 . . 2 . Crushed 1 | . . . . . . . . . 1 . Highest Temperature 446 | 36 152 183 . . 117 446 264 394 245 68 Average Temperature 99 | 15 42 82 . . 37 206 58 167 84 32 Received Heat Transfer 1416 | . 204 129 . . . 198 63 321 177 324 Effects 6 | . . . . . . 2 1 3 . . Shutdowns 2 | . . . . . . . . 2 . . Energy Bleed 2 | . . . . . . . 1 1 . . Damage (major) 2 | . . . . . . 2 . . . . Siege Activations . | . . . . . . . . . . . Robots Corrupted 1 | . . . . . . . . 1 . . Combat Hostiles 1 | . . . . . . . . 1 . . Parts Fried 3 | 1 . . . . . . . 2 . . Impact Corruptions 1 | . . . . . . . . 1 . . Robots Melted . | . . . . . . . . . . . Combat Hostiles . | . . . . . . . . . . . Parts Melted 2 | . . 2 . . . . . . . . Heat Transferred 2244 | 225 150 1203 . . 185 . . 481 . . Parts Sabotaged . | . . . . . . . . . . . Parts Stolen . | . . . . . . . . . . . Parts Stripped . | . . . . . . . . . . . Power Chain Reactions 1 | . . . . . . . . 1 . . Alert | -11 -10 -9 -9 -9 -8 -8 -7 -7 -6 -5 ------- Run | Yrd Mat Mat Min Exi Min Mat Fac Sto Fac Fac Peak Influence 369 | 40 124 264 158 . 71 157 100 369 210 22 Initial 152 | . 26 29 102 . . 3 71 . 152 22 Average 76 | 21 68 149 127 . 35 60 45 125 100 6 Maximum Alert Level 1 | . . 1 . . . . . 1 1 . Low Security (%) 92 | 100 100 79 100 . 100 100 100 75 83 100 Level 1 7 | . . 20 . . . . . 24 16 . Level 2 . | . . . . . . . . . . . Level 3 . | . . . . . . . . . . . Level 4 . | . . . . . . . . . . . Level 5 . | . . . . . . . . . . . High Security . | . . . . . . . . . . . Max Security . | . . . . . . . . . . . Squads Dispatched 12 | . . . . . . . 1 2 5 4 Investigation 1 | . . . . . . . . . . 1 Extermination 3 | . . . . . . . 1 1 1 . Reinforcement 2 | . . . . . . . . 1 1 . Assault . | . . . . . . . . . . . Garrison 6 | . . . . . . . . . 3 3 Intercept . | . . . . . . . . . . . Searches Triggered . | . . . . . . . . . . . Construction Impeded 1 | . . . . . . . . 1 . . Haulers Reinforced . | . . . . . . . . . . . Active Scanning Responses . | . . . . . . . . . . . Cargo Convoy Interrupts . | . . . . . . . . . . . Stealth | -11 -10 -9 -9 -9 -8 -8 -7 -7 -6 -5 --------- Run | Yrd Mat Mat Min Exi Min Mat Fac Sto Fac Fac Distress Signals 5 | . 1 . . . . 2 . 2 . . Communications Jammed . | . . . . . . . . . . . Distress Signals . | . . . . . . . . . . . Times Spotted 84 | . 10 15 . . 3 18 8 17 10 3 Peak Tracking Total 7 | . 3 6 . . 3 7 2 4 4 3 Tactical Retreats 10 | . 3 3 . . . 3 . . 1 . Traps | -11 -10 -9 -9 -9 -8 -8 -7 -7 -6 -5 ------- Run | Yrd Mat Mat Min Exi Min Mat Fac Sto Fac Fac Traps Triggered 5 | . . . . . . . 2 2 1 . Indirectly . | . . . . . . . . . . . Trap Hack Attempts . | . . . . . . . . . . . Triggered . | . . . . . . . . . . . Disarmed . | . . . . . . . . . . . Reprogrammed . | . . . . . . . . . . . Reused . | . . . . . . . . . . . Traps Extracted . | . . . . . . . . . . . Installed . | . . . . . . . . . . . Triggered . | . . . . . . . . . . . Machines | -11 -10 -9 -9 -9 -8 -8 -7 -7 -6 -5 ---------- Run | Yrd Mat Mat Min Exi Min Mat Fac Sto Fac Fac Machines Disabled 9 | . . . . . . 1 . 7 1 . Max in Single Turn 2 | . . . . . . 1 . 2 1 . Machines Repaired . | . . . . . . . . . . . Machines Dismantled . | . . . . . . . . . . . Machines Sabotaged . | . . . . . . . . . . . Overloaded Fab Kills . | . . . . . . . . . . . Hacking | -11 -10 -9 -9 -9 -8 -8 -7 -7 -6 -5 --------- Run | Yrd Mat Mat Min Exi Min Mat Fac Sto Fac Fac Machines Accessed 16 | . 2 2 . 5 . . 2 2 2 1 Terminals 8 | . 2 2 . . . . 2 2 . . Fabricators 1 | . . . . . . . . . 1 . Repair Stations . | . . . . . . . . . . . Recycling Units . | . . . . . . . . . . . Scanalyzers 1 | . . . . . . . . . 1 . Garrison Access 1 | . . . . . . . . . . 1 Total Hacks 78 | . 4 7 . 50 . . 5 5 4 3 Successful 60 | . 1 2 . 50 . . 1 3 3 . Failed 18 | . 3 5 . . . . 4 2 1 3 Catastrophic 4 | . . . . . . . 1 1 . 2 Database Lockouts . | . . . . . . . . . . . Manual 2 | . . . . 1 . . . 1 . . Terminals 21 | . 4 7 . . . . 5 5 . . Fabricators 1 | . . . . . . . . . 1 . Repair Stations . | . . . . . . . . . . . Recycling Units . | . . . . . . . . . . . Scanalyzers 3 | . . . . . . . . . 3 . Garrison Access 3 | . . . . . . . . . . 3 Terminal Hacks 57 | . 1 2 . 50 . . 1 3 . . Record 49 | . . . . 49 . . . . . . Part Schematic 1 | . . . . . . . 1 . . . Alert Level 5 | . 1 2 . . . . . 2 . . Zone Layout 1 | . . . . . . . . 1 . . Derelict Proto ID Bank 1 | . . . . 1 . . . . . . Fabricator Hacks 1 | . . . . . . . . . 1 . Build 1 | . . . . . . . . . 1 . Repair Station Hacks . | . . . . . . . . . . . Recycling Unit Hacks . | . . . . . . . . . . . Scanalyzer 2 | . . . . . . . . . 2 . Insert Component 1 | . . . . . . . . . 1 . Analyze 1 | . . . . . . . . . 1 . Garrison Access Hacks . | . . . . . . . . . . . Unauthorized Hacks . | . . . . . . . . . . . Terminals . | . . . . . . . . . . . Fabricators . | . . . . . . . . . . . Repair Stations . | . . . . . . . . . . . Recycling Units . | . . . . . . . . . . . Scanalyzers . | . . . . . . . . . . . Garrison Access . | . . . . . . . . . . . Data Cores Recovered . | . . . . . . . . . . . Used . | . . . . . . . . . . . Hacking Detections 9 | . 2 2 . . . . 2 1 1 1 Full Trace Events 1 | . . . . . . . . . . 1 Feedback Events . | . . . . . . . . . . . Feedback Blocked . | . . . . . . . . . . . Robot Schematics Acquired . | . . . . . . . . . . . Robots Built . | . . . . . . . . . . . Authchips . | . . . . . . . . . . . Time . | . . . . . . . . . . . Total Robot Build Rating . | . . . . . . . . . . . Part Schematics Acquired 2 | . . . . . . . 1 . 1 . Parts Built . | . . . . . . . . . . . Authchips . | . . . . . . . . . . . Time 58 | . . . . . . . . . 58 . Total Part Build Rating . | . . . . . . . . . . . Parts Repaired . | . . . . . . . . . . . Time . | . . . . . . . . . . . Parts Recycled . | . . . . . . . . . . . Recycled Matter . | . . . . . . . . . . . Retrieved Matter . | . . . . . . . . . . . Retrieved Components . | . . . . . . . . . . . Parts Scanalyzed 1 | . . . . . . . . . 1 . Part Schematics Acquired 1 | . . . . . . . . . 1 . Parts Damaged 1 | . . . . . . . . . 1 . Bothacking | -11 -10 -9 -9 -9 -8 -8 -7 -7 -6 -5 ------------ Run | Yrd Mat Mat Min Exi Min Mat Fac Sto Fac Fac Used RIF Installer . | . . . . . . . . . . . Robots Hacked . | . . . . . . . . . . . Non-combat . | . . . . . . . . . . . Combat . | . . . . . . . . . . . Robot Hacks Applied . | . . . . . . . . . . . Relay Couplers Released . | . . . . . . . . . . . Fabnet Peak Effective % . | . . . . . . . . . . . Robots Rewired . | . . . . . . . . . . . Allies Hacked . | . . . . . . . . . . . Hacks Repelled . | . . . . . . . . . . . Allies | -11 -10 -9 -9 -9 -8 -8 -7 -7 -6 -5 -------- Run | Yrd Mat Mat Min Exi Min Mat Fac Sto Fac Fac Total Allies 2 | . . . 2 . . . . . . . Largest Group 2 | . . . 2 1 . . . . . . Highest-Rated Group 45 | . . . 45 31 . . . . . . Highest-Rated Ally 31 | . . . 31 31 . . . . . . Total Orders . | . . . . . . . . . . . Ally Attacks 6 | . . . 6 . . . . . . . Total Damage 85 | . . . 85 . . . . . . . Kills 2 | . . . 2 . . . . . . . Allies Corrupted . | . . . . . . . . . . . Allies Melted . | . . . . . . . . . . . Intel | -11 -10 -9 -9 -9 -8 -8 -7 -7 -6 -5 ------- Run | Yrd Mat Mat Min Exi Min Mat Fac Sto Fac Fac Robot Analysis Total . | . . . . . . . . . . . Derelict Logs Recovered . | . . . . . . . . . . . Drone Launches . | . . . . . . . . . . . Drone Recoveries . | . . . . . . . . . . . Exploration | -11 -10 -9 -9 -9 -8 -8 -7 -7 -6 -5 ------------- Run | Yrd Mat Mat Min Exi Min Mat Fac Sto Fac Fac Turns Passed 6029 | 171 546 273 194 599 554 649 1257 909 791 86 Spaces Moved 2483 | 90 249 101 153 337 244 213 566 281 241 8 Core 36 | . 32 . . . . . . . 4 . Treads 102 | . . . . . . . . . 94 8 Legs 1882 | 90 157 101 153 337 244 213 444 . 143 . Wheels 403 | . . . . . . . 122 281 . . Hover 60 | . 60 . . . . . . . . . Flight . | . . . . . . . . . . . Fastest Speed 56 | 120 56 120 120 120 120 190 120 160 123 145 Average Speed 168 | 120 147 170 120 131 157 193 192 195 190 145 Slowest Speed 500 | 120 250 190 120 190 190 330 235 235 500 145 Overloaded Moves . | . . . . . . . . . . . Propulsion Burnouts . | . . . . . . . . . . . Robots Hopped . | . . . . . . . . . . . Cave-ins Triggered 1 | . 1 . . . . . . . . . Exploration Rate (%) 27 | 5 25 16 38 67 48 18 14 40 8 . Regions Visited 10 Branch Regions 4 Pre-discovered Areas 1 | . . . . 1 . . . . . . Known Exits Taken . | . . . . . . . . . . . Unknown Exits Taken 10 | 1 1 1 1 1 1 1 1 1 1 . Scrap Searched 2 | . . . 1 . 1 . . . . . Spaces Dug 27 | . 10 . . . . 1 . 16 . . Terrain Destroyed 107 | . 10 . . . 2 2 . 82 11 . Melee 16 | . . . . . . . . 16 . . Projectile 44 | . 10 . . . 2 2 . 19 11 . AOE 47 | . . . . . . . . 47 . . Terrain Rammed . | . . . . . . . . . . . Walls Destroyed . | . . . . . . . . . . . Machines Disabled . | . . . . . . . . . . . Actions | -11 -10 -9 -9 -9 -8 -8 -7 -7 -6 -5 --------- Run | Yrd Mat Mat Min Exi Min Mat Fac Sto Fac Fac Total 3802 | 128 355 146 165 499 388 374 684 523 479 61 Wait 736 | 16 48 5 2 143 123 100 4 124 132 39 Move 2473 | 89 248 100 152 336 243 212 565 280 240 8 Hop . | . . . . . . . . . . . Pick Up 67 | 5 4 1 2 11 4 3 25 6 6 . Fast Attach 54 | 1 5 5 2 . 1 5 6 16 13 . Attach 25 | . . 2 . . . 6 2 3 10 2 Detach 13 | . . 1 . . . . 3 3 6 . Swap 43 | 1 6 2 2 1 1 4 10 11 5 . Drop 66 | 3 7 2 5 8 3 3 17 17 1 . Fire 258 | 13 37 28 . . 13 39 32 30 61 5 Melee 34 | . . . . . . 1 . 33 . . Ram 1 | . . . . . . . . . . 1 Kick 3 | . . . . . . 1 . . 2 . Crush 9 | . . . . . . . . . 3 6 Escape Stasis 16 | . . . . . . . 16 . . . Rewire 4 | . . . . . . . 4 . . . Trap . | . . . . . . . . . . . Miscellaneous . | . . . . . . . . . . . Route ------- -11/Scrapyard -10/Materials -9/Materials -9/Mines -9/Exiles (discovered 2 exits: [*Min x2]) -8/Mines -8/Materials -7/Factory -7/Storage -6/Factory -5/Factory History --------- Turn | Location | Event 3 | -11/Scrapyard | Discovered new exit (range 3) 172 | -11/Scrapyard | Entered Materials 300 | -10/Materials | Build established: Mutant 370 | -10/Materials | Discovered new exit (range 7) 511 | -10/Materials | Crushed by falling debris 511 | -10/Materials | System corruption reached 10% 542 | -10/Materials | Lost 3 parts (2n1w) 572 | -10/Materials | Core integrity fell below 50% 718 | -10/Materials | Entered another Materials area 718 | -9/Materials | Evolved 2 slots: Propulsion x1, Utility x1 972 | -9/Materials | Discovered new exit (range 15) 991 | -9/Materials | Entered Mines 1019 | -9/Mines | Met a Derelict bent on vengeance 1069 | -9/Mines | Build established: Scavenger-Mutant 1179 | -9/Mines | Deemed a non-threat by the Exiles lab entrance 1180 | -9/Mines | Discovered new exit (range 5) 1185 | -9/Mines | Entered Exiles 1185 | -9/Exiles | Accompanied by 1 ally 1201 | -9/Exiles | Discovered new exit (range 15) 1214 | -9/Exiles | Met 8R-AWN 1215 | -9/Exiles | Led the pair of lost Derelicts to a safe place 1235 | -9/Exiles | Met EX-HEX 1277 | -9/Exiles | Met EX-BIN 1291 | -9/Exiles | Aligned with FarCom system 1292 | -9/Exiles | Given EX-Vault access code 1332 | -9/Exiles | Opened EX-Vault 1353 | -9/Exiles | Found Superbattery 1497 | -9/Exiles | Found Supersonic Drone Bay 1500 | -9/Exiles | Found Skeleton Box 1554 | -9/Exiles | Warned to stay clear of 0b10 Research branches 1590 | -9/Exiles | Met EX-DEC 1628 | -9/Exiles | Learned location of Zion (-6) 1765 | -9/Exiles | Discovered new exit (range 12) 1784 | -9/Exiles | Left Exiles lab with Skeleton Box 1784 | -9/Exiles | Entered Mines 2081 | -8/Mines | Build established: Scavenger-Skirmisher 2151 | -8/Mines | Discovered new exit (range 4) 2338 | -8/Mines | Entered Materials 2338 | -8/Materials | Evolved 2 slots: Utility x1, Weapon x1 2862 | -8/Materials | Lost 6 parts (2n1u3w) 2951 | -8/Materials | Discovered new exit (range 15) 2987 | -8/Materials | Entered Factory 2987 | -7/Factory | Evolved 2 slots: Power x1, Utility x1 3219 | -7/Factory | Discovered new exit (range 7) 4195 | -7/Factory | Build established: Hauler-Skirmisher 4244 | -7/Factory | Entered Storage 4977 | -7/Storage | Discovered new exit (range 16) 5001 | -7/Storage | Remotely autohacked Sealed Heavy Doors 5153 | -7/Storage | Entered Factory 5153 | -6/Factory | Evolved 2 slots: Propulsion x1, Utility x1 5370 | -6/Factory | Garrison activated, responded to threat 5407 | -6/Factory | Lost 6 parts (3p1n2u) 5620 | -6/Factory | Build established: Skirmisher 5788 | -6/Factory | Core integrity fell below 50% 5818 | -6/Factory | Discovered new exit (range 16) 5847 | -6/Factory | Lost 10 parts (2p4n2u2w) 5917 | -6/Factory | Core integrity fell below 20% 5934 | -6/Factory | Lost 3 parts (1n2u) 5944 | -6/Factory | Entered another Factory area 5944 | -5/Factory | Evolved 2 slots: Propulsion x1, Utility x1 6013 | -5/Factory | Core integrity fell below 50% 6026 | -5/Factory | Core integrity fell below 20% 6030 | -5/Factory | Destroyed by Y-64 Sentinel with Wave Gun Last Messages --------------- 05986_ Slug penetrates Neutrino Reactor. 05987_ Adv. Treads destroyed. 05987_ Penetrated by Slug. 05987_ Slammed into Y-64 Sentinel. 05990_ Slug penetrates Wall. 05992_ Penetrated by Slug. 05995_ Mni. Assault Cannon destroyed. 05995_ Penetrated by Slug. 05998_ Critical hit (Destroy). 05998_ Mni. Assault Cannon destroyed. 06003_ Penetrated by Slug. 06009_ Lrg. Storage Unit destroyed. 06009_ Penetrated by Slug. 06011_ Y-64 Sentinel emerges from the garrison. 06012_ Penetrated by Slug. 06015_ Slug penetrates Wall. 06016_ Penetrated by Slug. 06017_ Y-64 Sentinel destroyed. 06019_ Penetrated by Slug. 06030_ Critical hit (Burn: +37). Map ----- +----------------------------------------------------+ | ?????????????????????????????????????????? | | ?????????????????????????????????????????? | | ?????????????????????????????????????????? | | ?????????????????????????????????????????? | | ?????????????????????????????????????????? | | ?????????????????????????????????????????? | | ?????????????????????????????????????????? | | ?????????????????????????????????????????? | | ??????????????????????????""?????????????? | | ???????????????? ???????? ?????????????? | | ???????????????? ??????? ""?????????????? | | ???????????????? ?????? ""?????????????? | | ???????????????? ????? """ ???????????? | | ????????????####;##### ]??????????? | | ???????????## ??????????? | | ???????????# #?????????????? | | ???????????#T #?????????????? | | ???????????## #?????????????? | | ????????????# #?????????????? | | ???????????#####;######+####?????????????? | | ???????????# #???????????????????? | | ???????????# " #???????????????????? | | ???????????# !"" #???????????????????? | | ???????????# !=[G #???????????????????? | | ???????????# """Y!"" #???????????????????? | | ???????????# """=@=" #???????????????????? | | ???????????# """ Y #???????????????????? | | ???????????# #???????????????????? | | ???????????###########???????????????????? | | ?????????????????????????????????????????? | | ?????????????????????????????????????????? | | ?????????????????????????????????????????? | | ?????????????????????????????????????????? | | ?????????????????????????????????????????? | | ?????????????????????????????????????????? | | ?????????????????????????????????????????? | | ?????????????????????????????????????????? | | ?????????????????????????????????????????? | | ?????????????????????????????????????????? | | ?????????????????????????????????????????? | | ?????????????????????????????????????????? | | ?????????????????????????????????????????? | | ?????????????????????????????????????????? | | ?????????????????????????????????????????? | | ?????????????????????????????????????????? | | ?????????????????????????????????????????? | | ?????????????????????????????????????????? | | ?????????????????????????????????????????? | | ?????????????????????????????????????????? | | ?????????????????????????????????????????? | +----------------------------------------------------+ Best States ------------- Heat Dissipation 56 Energy Generation 26 Energy Capacity 340 Matter Stores 300 Matter Capacity 300 Sight Range 16 Terrain Scan Range 20 Terrain Scan Density 85 Additional Mass Support 9 Base Temperature (-) 100 Armor Coverage 375 Evasion (%) 55 Targeting Accuracy 6 Recoil Reduction 3 Item Schematics ----------------- Flexi-carbon Leg | -7/Factory | Hacked Proton Missile Launcher | -6/Factory | Scanalyzed Robot Schematics ------------------ None Fabricated ------------ Nothing Alien Tech Used ----------------- None Achievements -------------- None Challenges ------------ None Game ------ Seed NovaSuperquantumPlatform Manual? 0 Play Time 01:09:14 Cumulative 157.9 hours Start 2024.08.28 @ 13:46:58 End 2024.08.29 @ 19:15:14 Sessions 3 Manual Loads 0 Difficulty Rogue Special Mode None Game No. 283 Rogue 279 Adventurer 0 Explorer 4 Win Type - Total 0 Types 0/0/0/0/0/0/0/0/0 Lore% 19 Gallery% 46 Achievement% 34 Wizard Run 0 Options --------- Layout 1 ASCII 0 Keyboard 1 Movement Arrows Keybinds 0 Fullscreen 1 Font 32/Proggy Map View 130x35 Zoom Use 0% Tactical HUD 1 Map Filters NONE Filters NONE Steam 0 RUN: 87764827-42ef-4d01-b1e8-dd4a25030979